bitfinex/quotes_ETHUSD_20260228
["timestamp","ask_amount","ask_price","bid_price","bid_amount"]
[1772238132161,2.26361769,1932.3,1932.2,0.0022]
[1772238133471,1.08821957,1932.2,1932.0,0.00153886]
[1772238133677,1.08821957,1932.1,1932.0,0.00153886]
[1772238133977,1.08821957,1932.1,1931.5,2.33039008]
[1772238134291,1.08821957,1931.9,1931.6,0.0011]
[1772238134664,1.08821957,1931.9,1931.7,0.0011]
[1772238134877,1.08821957,1931.9,1931.6,0.0011]
[1772238135697,1.08821957,1931.9,1931.7,0.0011]
[1772238135991,1.08821957,1931.9,1931.6,0.0011]
[1772238136288,1.08821957,1931.8,1931.6,0.0011]
[1772238136488,1.08821957,1931.8,1931.4,1.29433736]
[1772238136658,1.08821957,1931.8,1931.5,0.0011]
[1772238137280,1.08821957,1931.8,1931.5,1.03720005]
[1772238137460,1.08821957,1931.8,1931.5,0.0011]
[1772238137872,1.08821957,1931.8,1931.5,1.03720005]
[1772238139691,1.08821957,1931.8,1931.5,2.33151856]
[1772238140764,1.08821957,1931.8,1931.5,1.03720005]
[1772238140960,2.38235221,1931.8,1931.5,1.03720005]
[1772238141166,2.38235221,1931.8,1931.6,0.0011]
[1772238141364,1.08821957,1931.7,1931.5,0.0011]
[1772238141790,1.08821957,1931.6,1931.5,0.0011]
[1772238143196,1.08821957,1931.6,1931.5,0.0022]
[1772238144096,2.38248339,1931.6,1931.5,0.0022]
[1772238144268,1.08821957,1931.6,1931.5,0.0022]
[1772238144676,1.08821957,1931.6,1931.5,0.0011]
[1772238148084,2.38248339,1931.6,1931.5,0.0011]
[1772238148610,1.08821957,1931.5,1931.3,0.0011]
[1772238148783,1.08821957,1931.5,1931.4,0.0011]
[1772238149881,1.29422848,1931.7,1931.4,1.03720005]
[1772238150080,1.29422848,1931.7,1931.5,1.03720005]
[1772238150309,1.29422848,1931.7,1931.5,1.03610005]
[1772238150612,2.38244805,1931.7,1931.4,1.03720005]
[1772238150901,1.08821957,1931.6,1931.4,0.0011]
[1772238152891,2.3825504,1931.5,1931.4,0.0011]
[1772238154109,1.08821957,1931.4,1931.0,0.00153886]
[1772238154405,1.08821957,1931.3,1930.6,1.03610005]
[1772238154707,1.08821957,1931.1,1930.6,1.03610005]
[1772238155010,1.08821957,1930.9,1930.6,1.03610005]
[1772238155308,1.08821957,1930.8,1930.0,1.29682129]
[1772238155810,1.08821957,1930.8,1930.1,0.58483669]
[1772238156500,1.08821957,1930.8,1930.2,0.03514013]
[1772238156811,1.08821957,1930.8,1930.0,1.34863476]
[1772238157105,1.08821957,1930.8,1930.2,0.58483669]
[1772238157106,2.38304307,1930.8,1930.2,0.58483669]
[1772238157308,1.2948235,1930.8,1930.2,0.58483669]
[1772238157613,1.09379223,1930.7,1930.1,1.295222]
[1772238159417,2.38867156,1930.7,1930.0,1.88166228]
[1772238159606,1.09379223,1930.6,1930.0,1.88166228]
[1772238159910,2.38855039,1930.9,1930.2,0.58483669]
[1772238160110,1.09379223,1930.9,1930.2,0.58483669]
[1772238160516,2.38853105,1930.9,1930.2,0.58483669]
[1772238160908,1.09379223,1930.8,1930.2,1.87999582]
[1772238162018,1.29465382,1931.1,1930.4,0.58483669]
[1772238162220,1.09379223,1931.0,1930.4,0.58483669]
[1772238162717,1.09379223,1931.0,1930.2,1.87999582]
[1772238162921,1.09379223,1930.8,1930.1,1.29522349]
[1772238163791,1.09379223,1930.8,1930.1,1.29524316]
[1772238164413,1.09379223,1930.8,1930.0,1.88167636]
[1772238164806,1.29486714,1930.7,1930.0,1.88167636]
[1772238165028,1.09379223,1930.6,1930.0,1.88167636]
[1772238165395,1.09379223,1930.6,1930.1,0.39074626]
[1772238167523,1.09379223,1930.6,1930.1,1.68601144]
[1772238167698,1.09379223,1930.6,1930.2,0.0011]
[1772238167899,2.38857631,1930.9,1930.3,0.39074626]
[1772238168223,1.29478408,1930.9,1930.3,0.39074626]
[1772238168428,1.09379223,1930.8,1930.3,0.39074626]
[1772238169628,2.3886058,1930.8,1930.3,0.39074626]
[1772238171331,1.09379223,1930.8,1930.3,0.39074626]
[1772238172028,2.38859913,1930.8,1930.3,0.39074626]
[1772238172524,1.09379223,1930.7,1930.3,0.39074626]
[1772238172697,1.2948069,1930.8,1930.3,0.39074626]
[1772238172898,2.38859913,1930.8,1930.3,0.39074626]
[1772238173096,1.09379223,1930.7,1930.3,0.39074626]
[1772238174827,1.09379223,1930.6,1930.3,0.39074626]
[1772238179912,1.09379223,1930.6,1930.2,0.0011]
[1772238180136,1.09479223,1930.5,1930.2,0.0011]
[1772238188090,0.001,1930.5,1930.3,0.39074626]
[1772238189099,1.09479223,1930.5,1930.2,0.0011]
[1772238190102,6.27218796,1931.4,1930.2,0.0011]
[1772238190283,6.27218796,1931.4,1930.5,0.39074626]
[1772238190284,1.09379223,1931.2,1930.5,0.39074626]
[1772238190491,1.09379223,1931.1,1930.3,3.70894124]
[1772238190796,1.09379223,1930.9,1930.3,3.70894124]
[1772238191180,1.09379223,1930.9,1930.3,5.00407462]
[1772238192196,0.001,1930.4,1930.3,5.00407462]
[1772238192374,1.09379223,1930.8,1930.3,5.00407462]
[1772238193512,1.09379223,1930.8,1930.3,3.70894124]
[1772238194614,2.38859348,1930.8,1930.3,3.70894124]
[1772238194801,1.09379223,1930.8,1930.3,3.70894124]
[1772238196820,1.09379223,1930.8,1930.3,1.22874626]
[1772238197620,1.09379223,1930.8,1930.3,0.838]
[1772238198819,1.09379223,1930.6,1930.2,0.39184626]
[1772238203960,1.09379223,1930.6,1930.4,0.39074626]
[1772238213733,1.09379223,1931.0,1930.4,1.68580953]
[1772238213932,1.09379223,1931.0,1930.7,0.39074626]
[1772238214137,1.09379223,1930.9,1930.7,0.39074626]
[1772238214743,1.09379223,1930.9,1930.5,0.39074626]
[1772238215049,1.09379223,1930.8,1930.5,0.39074626]
[1772238216359,1.09379223,1930.8,1930.5,0.39184626]
[1772238216566,1.09379223,1931.0,1930.7,0.39074626]
[1772238219797,1.09379223,1931.3,1930.8,0.39074626]
[1772238220088,1.09379223,1931.3,1930.9,0.39074626]
[1772238220389,1.09379223,1931.3,1930.9,0.60342696]
[1772238221162,1.09379223,1931.3,1930.5,0.44068245]
[1772238221362,1.09379223,1931.3,1930.5,1.89987556]
[1772238221786,1.15924685,1931.1,1930.6,0.20970233]
[1772238223771,1.15924685,1931.1,1930.6,1.5046359]
[1772238223772,1.15924685,1931.0,1930.6,1.5046359]
[1772238229604,0.001,1930.9,1930.6,1.5046359]
[1772238231307,1.15924685,1931.0,1930.7,0.76592133]
[1772238231610,7.25159863,1931.4,1930.7,0.76592133]
[1772238231611,1.15924685,1931.2,1930.8,0.18007924]
[1772238232182,1.15924685,1931.2,1930.9,0.76266343]
[1772238232383,1.15924685,1931.2,1930.8,0.17682134]
[1772238234423,1.15924685,1931.2,1930.8,1.4716204]
[1772238235598,1.15924685,1931.1,1930.8,0.17682134]
[1772238236224,1.15924685,1931.1,1930.8,1.47161738]
[1772238237223,1.15924685,1931.1,1930.8,0.17682134]
[1772238237424,2.45385803,1931.1,1930.8,0.17682134]
[1772238237629,1.15924685,1931.0,1930.7,0.74332831]
[1772238241035,1.15924685,1931.0,1930.7,2.03819339]
[1772238241931,1.15924685,1931.0,1930.7,0.74332831]
[1772238242440,1.15924685,1931.0,1930.7,2.03929471]
[1772238242737,1.16024685,1931.0,1930.7,2.03929471]
[1772238242919,1.16024685,1931.0,1930.7,0.58694209]
[1772238243309,1.16024685,1931.0,1930.7,0.0011]
[1772238243503,1.16024685,1931.0,1930.5,1.88189116]
[1772238243504,1.16024685,1931.0,1930.5,0.0011]
[1772238247136,1.15924685,1930.8,1930.5,0.0011]
[1772238247843,2.45376996,1931.3,1930.9,0.12691241]
[1772238248143,1.29452311,1931.3,1931.0,0.12691241]
[1772238248522,2.45376996,1931.3,1931.0,0.12691241]
[1772238253347,1.13812019,1931.2,1930.9,0.69731907]
[1772238254720,1.13912019,1931.2,1930.9,0.69731907]
[1772238255554,2.43366614,1931.2,1930.9,0.69731907]
[1772238255715,1.13812019,1931.3,1931.0,0.10221676]
[1772238256033,2.43255285,1931.4,1931.0,0.10221676]
[1772238257037,2.43252728,1931.4,1931.0,0.10221676]
[1772238257424,1.29538405,1931.5,1931.0,0.10221676]
[1772238257629,2.43350424,1931.5,1931.1,1.11608623]
[1772238259245,1.13812019,1931.4,1931.1,1.11608623]
[1772238259951,1.13812019,1931.4,1931.1,2.41067955]
[1772238260249,1.13812019,1931.4,1931.1,2.41066475]
[1772238260548,1.13812019,1931.4,1931.1,1.11608623]
[1772238260735,1.13812019,1931.4,1931.1,2.41064467]
[1772238260937,1.13812019,1931.7,1931.3,1.11608623]
[1772238261120,1.13812019,1931.7,1931.1,1.70192832]
[1772238261321,1.13812019,1931.7,1931.1,1.11608623]
[1772238261939,1.29426382,1931.6,1931.1,1.11608623]
[1772238262138,1.13812019,1931.5,1931.1,2.41067115]
[1772238264032,1.13812019,1931.5,1931.2,1.11608623]
[1772238267343,0.001,1931.4,1931.2,1.11608623]
[1772238268351,1.13812019,1931.7,1931.3,1.11608623]
[1772238270447,2.074,1931.8,1931.3,1.11608623]
[1772238270656,1.13812019,1931.6,1931.3,2.41055031]
[1772238272037,1.13812019,1931.6,1931.3,2.9963924]
[1772238272350,1.13812019,1931.8,1931.5,1.70192832]
[1772238273729,2.43225646,1931.8,1931.5,1.11608623]
[1772238274843,1.13812019,1931.8,1931.5,1.11608623]
[1772238275339,2.43225443,1931.8,1931.5,1.11608623]
[1772238276464,1.13812019,1931.8,1931.5,1.11608623]
[1772238279165,1.13812019,1931.8,1931.5,1.11718623]
[1772238279362,7.2547168,1932.0,1931.5,1.11718623]
[1772238279363,1.13965905,1932.0,1931.7,1.70192832]
[1772238279562,2.43367179,1932.0,1931.7,1.11608623]
[1772238279756,1.13812019,1931.9,1931.6,1.11608623]
[1772238284467,1.13812019,1931.9,1931.4,0.0011]
[1772238284644,1.09932758,1931.7,1931.4,0.0011]
[1772238287275,1.09932758,1931.5,1931.4,0.0011]
[1772238289460,5.17705529,1931.7,1931.4,1.05820517]
[1772238289461,3.37424633,1931.7,1931.4,1.05820517]
[1772238289980,1.29424633,1931.7,1931.4,1.05820517]
[1772238291882,2.39357391,1931.7,1931.4,1.05820517]
[1772238292181,1.09932758,1931.6,1931.4,0.0011]
[1772238292584,1.09932758,1931.6,1931.5,0.0011]
[1772238293080,1.10032758,1931.6,1931.5,0.0011]
[1772238295406,1.09932758,1931.5,1931.2,0.0011]
[1772238295776,1.09932758,1931.0,1930.8,0.0011]
[1772238296070,2.086,1931.1,1930.8,1.05820517]
[1772238296275,1.09932758,1931.2,1930.8,1.05820517]
[1772238296276,2.88132758,1931.2,1930.8,1.05820517]
[1772238297610,1.29459893,1931.1,1930.8,1.05820517]
[1772238300423,1.09932758,1931.0,1930.5,1.05820517]
[1772238301794,1.09932758,1931.0,1930.6,1.05710517]
[1772238302101,3.38259893,1931.1,1930.7,1.05820517]
[1772238302671,1.09932758,1931.0,1930.7,1.05820517]
[1772238303077,4.48192651,1931.1,1930.7,1.05820517]
[1772238304102,2.39392651,1931.1,1930.7,1.05820517]
[1772238304274,4.48292651,1931.1,1930.7,1.05820517]
[1772238305105,2.089,1931.1,1930.7,1.05820517]
[1772238305305,4.48284454,1931.3,1930.9,1.05710517]
[1772238306076,2.089,1931.3,1931.1,1.05710517]
[1772238306394,1.29544546,1931.4,1931.1,1.05710517]
[1772238306570,2.39477304,1931.4,1931.1,1.05710517]
[1772238308812,1.09932758,1931.3,1930.9,1.05710517]
[1772238309580,1.09932758,1931.3,1930.8,0.0011]
[1772238309781,1.09932758,1931.3,1930.8,1.05820517]
[1772238310674,1.12087612,1931.2,1930.8,1.05820517]
[1772238310908,1.29452811,1931.3,1930.9,1.04018619]
[1772238311278,2.41632862,1931.4,1930.9,1.04018619]
[1772238312806,2.41632862,1931.4,1931.0,1.04018619]
[1772238318128,0.001,1931.3,1931.0,1.04018619]
[1772238319117,1.12187612,1931.3,1931.0,1.04018619]
[1772238319515,0.001,1931.3,1931.0,1.04018619]
[1772238320326,0.001,1931.3,1930.8,0.0011]
[1772238320327,1.12187612,1931.3,1930.8,0.0011]
[1772238320504,1.12087612,1931.2,1930.8,0.0011]
[1772238320707,1.12087612,1931.2,1930.8,1.04128619]
[1772238323233,2.41547316,1931.2,1930.8,1.04128619]
[1772238327135,1.12087612,1931.1,1930.7,1.29596334]
[1772238327338,1.29459704,1931.2,1930.5,0.0011]
[1772238327339,1.12087612,1930.9,1930.5,1.04018619]
[1772238327503,1.12087612,1930.9,1930.6,0.0011]
[1772238327832,1.12087612,1930.9,1930.6,1.04128619]
[1772238328033,2.41562812,1930.9,1930.6,1.04128619]
[1772238329207,1.12087612,1931.1,1930.7,1.04128619]
[1772238329733,1.12087612,1931.1,1930.9,0.0011]
[1772238330307,2.41553892,1931.1,1930.9,0.0011]
[1772238330659,2.41543699,1931.2,1930.9,1.04238619]
[1772238331923,1.29456087,1931.2,1931.0,1.04128619]
[1772238338242,2.4152368,1931.5,1931.2,1.04018619]
[1772238338441,1.12087612,1931.4,1931.1,0.0011]
[1772238340359,2.41532706,1931.4,1931.1,0.0011]
[1772238341662,0.001,1931.3,1931.1,0.0011]
[1772238342561,0.001,1931.3,1931.1,1.12132019]
[1772238342858,1.14351062,1931.3,1930.9,0.0011]
[1772238343057,1.14351062,1931.3,1931.0,0.0011]
[1772238343860,1.14351062,1931.3,1931.0,1.12132019]
[1772238344062,0.001,1931.3,1931.1,1.12132019]
[1772238344230,0.001,1931.3,1931.1,1.12022019]
[1772238344766,1.29438635,1931.5,1931.0,1.12022019]
[1772238345063,1.14251062,1931.4,1931.0,1.12022019]
[1772238346064,1.14251062,1931.4,1930.9,0.0011]
[1772238346369,1.14251062,1931.3,1930.9,0.0011]
[1772238347167,1.14251062,1931.1,1930.9,0.0011]
[1772238350866,1.14251062,1931.0,1930.9,0.0011]
[1772238351199,1.14251062,1931.2,1930.9,0.0011]
[1772238351549,2.43708657,1931.2,1930.9,0.0011]
[1772238352172,2.43701335,1931.3,1930.9,1.12132019]
[1772238352466,1.29450273,1931.3,1930.9,1.12132019]
[1772238352966,2.43701335,1931.3,1930.9,1.12132019]
[1772238354469,2.43701335,1931.3,1931.0,0.0011]
[1772238354870,2.43801335,1931.3,1931.0,0.0011]
[1772238360583,2.43801335,1931.3,1931.0,1.12132019]
[1772238360890,0.001,1931.3,1931.0,1.12132019]
[1772238366567,1.14351062,1931.3,1930.9,0.0011]
[1772238368687,1.14251062,1931.1,1930.9,0.0011]
[1772238368877,1.14251062,1931.1,1930.7,0.0011]
[1772238369193,1.14251062,1930.9,1930.7,0.0011]
[1772238371096,2.43730153,1930.9,1930.7,0.0011]
[1772238371269,1.05680224,1930.8,1930.7,0.0011]
[1772238373268,2.35160232,1930.8,1930.7,0.0011]
[1772238374778,1.05680224,1930.7,1930.5,0.0011]
[1772238376209,1.05680224,1930.6,1930.5,0.0011]
[1772238379898,1.05680224,1930.8,1930.5,1.02133118]
[1772238381301,1.29473636,1930.9,1930.5,1.02133118]
[1772238381607,2.3515386,1930.9,1930.5,1.02133118]
[1772238382403,1.05680224,1930.8,1930.5,0.0011]
[1772238382604,1.05680224,1930.7,1930.4,0.0011]
[1772238382805,1.05680224,1930.7,1930.4,1.01757881]
[1772238383198,4.46857129,1930.9,1930.4,1.01757881]
[1772238384013,3.17380224,1930.9,1930.4,1.01757881]
[1772238384711,1.05680224,1930.8,1930.4,1.01757881]
[1772238387616,1.05680224,1930.8,1930.4,2.31262457]
[1772238390616,1.05680224,1930.8,1930.5,0.0011]
[1772238391009,1.05780224,1930.7,1930.4,1.00714441]
[1772238392019,1.05780224,1930.7,1930.4,2.30220162]
[1772238392612,1.05780224,1930.7,1930.4,1.00714441]
[1772238392915,1.05780224,1930.7,1930.4,2.30220822]
[1772238393515,1.05780224,1930.7,1930.4,1.00314271]
[1772238393516,0.001,1930.7,1930.4,1.00314271]
[1772238395017,0.001,1930.7,1930.4,2.29819829]
[1772238395223,0.001,1930.7,1930.5,1.00177192]
[1772238397617,1.05780224,1930.7,1930.3,2.29379432]
[1772238398027,1.05780224,1930.7,1930.3,0.0011]
[1772238398393,0.001,1930.7,1930.4,0.99759827]
[1772238400727,1.03669542,1930.7,1930.4,0.99759827]
[1772238402230,1.03669542,1930.7,1930.4,2.29266523]
[1772238403028,0.001,1930.7,1930.5,0.99276077]
[1772238403230,0.001,1930.7,1930.5,0.99386077]
[1772238403434,0.001,1930.6,1930.5,0.99386077]
[1772238409008,0.001,1930.7,1930.5,0.99386077]
[1772238409833,0.001,1930.7,1930.5,2.28885839]
[1772238412430,0.001,1930.7,1930.5,0.99386077]
[1772238414547,0.001,1930.7,1930.5,2.28885786]
[1772238415629,0.39066535,1931.1,1930.6,0.9732789]
[1772238415837,1.03569542,1931.1,1930.7,0.9732789]
[1772238416219,1.03569542,1931.0,1930.7,0.9732789]
[1772238417827,1.03569542,1931.0,1930.6,0.0011]
[1772238419047,1.03569542,1930.8,1930.6,0.0011]
[1772238421532,2.33056256,1930.7,1930.6,0.0011]
[1772238421737,2.72122791,1930.7,1930.6,0.0011]
[1772238422641,1.03569542,1930.6,1930.4,0.0011]
[1772238422847,1.03569542,1930.6,1930.4,0.0033]
[1772238423856,1.03569542,1930.5,1930.4,0.0033]
[1772238428454,1.42636077,1930.5,1930.4,0.0011]
[1772238428657,1.03569542,1930.5,1930.4,0.0011]
[1772238429658,1.03569542,1930.4,1930.2,0.0011]
[1772238429862,1.03569542,1930.2,1930.0,0.00153886]
[1772238430032,1.03569542,1930.5,1930.1,0.95360658]
[1772238431267,1.09201062,1930.6,1930.2,0.95290815]
[1772238431972,1.09201062,1930.6,1930.0,0.00153886]
[1772238432168,1.09101062,1930.3,1930.0,0.00153886]
[1772238432548,1.09101062,1930.1,1930.0,0.00153886]
[1772238434670,1.09101062,1930.2,1930.0,0.00153886]
[1772238435869,1.09101062,1930.2,1929.4,5.18295581]
[1772238435870,1.10895247,1930.1,1929.3,5.57378984]
[1772238436058,1.10895247,1929.9,1929.3,5.57378984]
[1772238436439,1.10895247,1929.8,1929.4,0.02520458]
[1772238436840,1.10895247,1929.8,1929.4,1.32093488]
[1772238437237,1.10895247,1929.7,1929.3,1.29577402]
[1772238437669,1.10895247,1929.7,1929.4,0.02422132]
[1772238438559,1.10895247,1929.8,1929.5,0.02322429]
[1772238438763,0.39066535,1929.8,1929.2,1.29584923]
[1772238439076,1.10895247,1929.9,1929.3,0.02322429]
[1772238439254,1.10895247,1929.8,1929.3,0.02322429]
[1772238440281,1.10895247,1929.8,1929.5,0.0011]
[1772238440582,1.10895247,1929.7,1929.5,0.0011]
[1772238441439,1.10895247,1929.7,1929.2,1.31822112]
[1772238441642,1.10895247,1929.7,1929.3,0.02127819]
[1772238442147,1.10840247,1929.8,1929.3,0.02127819]
[1772238442482,1.6861151,1929.9,1929.2,0.0011]
[1772238442483,1.10840247,1929.6,1929.2,0.0011]
[1772238442654,1.10840247,1929.5,1929.2,0.0011]
[1772238442862,1.10840247,1929.5,1929.2,0.02141689]
[1772238443447,1.10840247,1929.8,1929.3,0.02031689]
[1772238444978,1.10840247,1929.6,1929.3,0.02031689]
[1772238445618,0.39066535,1929.5,1929.2,0.0011]
[1772238445766,1.10840247,1929.4,1929.0,0.01868122]
[1772238445972,1.10840247,1929.4,1929.1,0.01714236]
[1772238446173,1.68620351,1929.7,1929.1,0.01714236]
[1772238446174,1.10840247,1929.6,1929.1,0.01714236]
[1772238446378,1.10840247,1929.6,1929.0,1.31468787]
[1772238446678,1.10840247,1929.6,1929.1,0.01610673]
[1772238447906,1.29563081,1929.6,1929.1,1.31202278]
[1772238448078,1.10840247,1929.5,1929.1,1.31202278]
[1772238449615,1.10840247,1929.4,1929.1,0.01610673]
[1772238449800,1.10840247,1929.4,1929.0,1.29754485]
[1772238450479,1.10840247,1929.4,1929.1,0.01283843]
[1772238451270,1.10840247,1929.4,1929.0,1.30927626]
[1772238451910,1.10840247,1929.4,1929.1,0.01010689]
[1772238452277,1.10840247,1929.4,1929.2,0.0011]
[1772238454220,1.10840247,1929.4,1928.7,5.18482924]
[1772238454221,1.10840247,1929.2,1927.3,0.85766647]
[1772238454540,0.39066535,1927.4,1926.8,0.00523775]
[1772238454824,1.10840247,1927.5,1926.9,3.71066184]
[1772238455026,1.10840247,1927.3,1927.0,3.36665287]
[1772238455319,1.10840247,1927.3,1926.6,3.31475874]
[1772238455522,2.62487024,1927.7,1926.0,2.59454909]
[1772238455523,1.10840247,1926.9,1926.0,2.59454909]
[1772238455721,1.10840247,1926.9,1926.2,0.13077287]
[1772238456090,1.10840247,1926.9,1926.3,1.29782484]
[1772238456293,1.10840247,1927.2,1926.6,0.52143822]
[1772238456608,1.10840247,1927.5,1926.6,0.52143822]
[1772238456923,1.10840247,1927.5,1926.7,3.20455897]
[1772238457327,3.42894957,1927.6,1926.8,3.20455897]
[1772238457328,1.10840247,1927.1,1926.8,3.20455897]
[1772238457621,1.10840247,1927.1,1926.5,0.13008973]
[1772238458191,1.10840247,1927.1,1926.5,1.42772979]
[1772238458415,1.10840247,1927.1,1926.6,3.20455897]
[1772238458914,1.10840247,1927.1,1926.7,3.20455897]
[1772238459119,1.10840247,1927.6,1926.9,0.12812529]
[1772238459290,1.10840247,1927.8,1927.0,3.33268426]
[1772238459688,1.10840247,1927.8,1927.1,3.20455897]
[1772238459917,1.10840247,1927.8,1927.1,3.33071835]
[1772238460119,1.10840247,1927.8,1927.2,4.50177773]
[1772238461192,1.29824849,1928.0,1927.3,3.33006668]
[1772238461193,2.40663741,1928.0,1927.3,3.33006668]
[1772238461488,1.10994133,1928.0,1927.3,3.33006668]
[1772238462000,1.10840247,1927.9,1927.4,3.20455897]
[1772238462206,1.10840247,1927.9,1927.3,3.20455897]
[1772238463011,1.10840247,1927.9,1927.3,3.32609942]
[1772238464224,1.10840247,1927.9,1927.4,1.29708415]
[1772238464606,0.00153886,1928.0,1927.4,1.29708415]
[1772238464801,1.10994133,1928.0,1927.5,3.20455897]
[1772238465218,1.10994133,1928.0,1927.6,3.20455897]
[1772238465219,0.00153886,1928.0,1927.6,3.20455897]
[1772238466419,0.00153886,1928.0,1927.6,1.29694957]
[1772238466618,0.00153886,1928.0,1927.7,3.20455897]
[1772238466619,1.10994133,1928.0,1927.7,3.20455897]
[1772238466824,1.10994133,1928.0,1927.3,0.1136032]
[1772238466825,1.10994133,1928.0,1927.4,4.50160772]
[1772238467591,1.10994133,1928.0,1927.4,3.20455897]
[1772238467826,1.10994133,1928.0,1927.5,3.20455897]
[1772238468124,1.10994133,1928.0,1927.2,4.50173509]
[1772238468499,1.10840247,1927.9,1927.2,4.50173509]
[1772238469099,1.10840247,1927.8,1926.5,3.3688238]
[1772238469418,1.10840247,1927.6,1926.6,5.29960376]
[1772238469620,1.10840247,1927.6,1926.6,8.50416273]
[1772238469928,1.10840247,1927.6,1926.7,3.20455897]
[1772238470298,1.10840247,1927.5,1926.8,3.20455897]
[1772238470625,1.10840247,1927.5,1926.8,1.29748806]
[1772238470626,1.10840247,1927.3,1926.8,1.29748806]
[1772238471530,1.10840247,1927.3,1926.7,4.50205936]
[1772238471825,1.10840247,1927.3,1926.8,3.20455897]
[1772238472546,1.10840247,1927.3,1926.9,3.20455897]
[1772238473128,2.40555672,1927.3,1926.9,3.20455897]
[1772238473466,1.10840247,1927.5,1927.0,3.20455897]
[1772238474033,1.10840247,1927.7,1927.1,3.20455897]
[1772238474235,1.10840247,1927.7,1927.0,3.30431415]
[1772238474525,1.10840247,1927.7,1927.2,1.29721876]
[1772238478203,1.10840247,1927.6,1927.2,1.29721876]
[1772238478616,1.10840247,1927.6,1927.3,3.20455897]
[1772238478820,1.10840247,1927.8,1927.3,3.20455897]
[1772238479020,1.10840247,1927.8,1927.4,4.50163068]
[1772238479238,1.10840247,1927.8,1927.4,1.29707171]
[1772238480133,1.10840247,1927.8,1927.5,3.20455897]
[1772238481029,1.01900651,1927.8,1927.6,3.20455897]
[1772238481704,1.10122992,1928.7,1927.8,0.17596057]
[1772238483020,1.10122992,1928.6,1927.9,4.67541348]
[1772238483523,1.10122992,1928.6,1928.0,3.20455897]
[1772238484316,1.10122992,1928.6,1928.1,3.20455897]
[1772238484513,1.10122992,1928.6,1928.0,3.20455897]
[1772238484961,1.10122992,1928.6,1928.1,1.29661324]
[1772238485253,1.10122992,1928.9,1928.2,3.20455897]
[1772238485417,1.10122992,1928.9,1928.2,3.3748166]
[1772238485621,1.10122992,1928.9,1928.3,3.20455897]
[1772238485941,0.00153886,1929.0,1928.4,0.16833094]
[1772238486141,0.00153886,1929.0,1928.4,3.37288991]
[1772238486315,0.00153886,1929.0,1928.5,3.20455897]
[1772238486914,0.00153886,1929.0,1928.6,3.20455897]
[1772238487137,0.00153886,1929.0,1928.5,4.50090327]
[1772238487441,0.00153886,1929.0,1928.5,4.66729858]
[1772238488445,0.00153886,1929.0,1928.6,3.20455897]
[1772238489844,0.00153886,1929.0,1928.7,1.29620988]
[1772238490249,0.00153886,1929.0,1928.8,3.20455897]
[1772238491025,0.00153886,1929.0,1928.9,3.20455897]
[1772238491225,0.00153886,1929.0,1928.8,3.20455897]
[1772238491859,1.07228656,1929.0,1928.4,1.29641153]
[1772238492150,1.0717477,1928.9,1928.4,1.29641153]
[1772238492935,1.0717477,1928.9,1928.5,3.20455897]
[1772238493759,1.0717477,1928.9,1928.6,1.29627709]
[1772238495426,1.0717477,1928.9,1928.7,3.20455897]
[1772238496073,1.0717477,1928.9,1928.7,4.50073125]
[1772238496363,1.0717477,1928.9,1928.7,1.29617228]
[1772238496564,0.00153886,1929.0,1928.8,3.20455897]
[1772238496971,1.0717477,1929.3,1928.8,0.1475702]
[1772238497129,1.0707477,1929.6,1928.9,4.28446209]
[1772238497441,1.0707477,1929.6,1928.9,1.07990312]
[1772238498953,1.0707477,1929.5,1929.0,3.20455897]
[1772238500349,1.0707477,1929.5,1929.1,3.20455897]
[1772238500666,1.0707477,1929.5,1929.0,3.20455897]
[1772238501161,1.0707477,1929.5,1929.1,1.29594111]
[1772238501341,1.0707477,1929.5,1929.2,3.20455897]
[1772238501842,1.0707477,1929.7,1929.3,3.20455897]
[1772238502043,1.0707477,1929.7,1929.2,3.20455897]
[1772238502357,1.0707477,1929.3,1928.1,1.29661324]
[1772238503182,1.0707477,1929.1,1928.1,1.29661324]
[1772238503347,1.0707477,1928.9,1928.1,1.29661324]
[1772238503671,1.0707477,1928.9,1928.2,1.9230777]
[1772238506249,1.0707477,1928.7,1928.3,1.29757876]
[1772238507479,1.0707477,1928.4,1928.2,0.0011]
[1772238509472,2.36720631,1928.4,1928.2,0.0011]
[1772238509772,1.0707477,1928.3,1928.2,0.0011]
[1772238511461,2.36713778,1928.5,1928.2,0.0011]
[1772238511777,2.36713778,1928.5,1928.2,1.9241777]
[1772238513176,1.0707477,1928.4,1928.2,1.9241777]
[1772238513585,2.36716081,1928.4,1928.2,1.9241777]
[1772238515087,1.0707477,1928.4,1928.2,1.9241777]
[1772238515561,2.36692906,1928.8,1928.2,2.37753318]
[1772238515882,2.36692906,1928.8,1928.3,1.9230777]
[1772238516406,1.0707477,1928.7,1928.4,1.9230777]
[1772238516573,3.1697477,1928.7,1928.3,1.9230777]
[1772238516880,1.0707477,1928.6,1928.3,1.9230777]
[1772238517974,1.0707477,1928.6,1928.2,1.29763006]
[1772238518156,1.0707477,1928.6,1928.3,1.9230777]
[1772238520209,3.20570017,1928.8,1928.4,3.0021566]
[1772238521198,0.001,1928.6,1928.4,3.0021566]
[1772238521388,0.001,1928.6,1928.4,2.2711566]
[1772238522986,0.001,1928.6,1928.5,1.9230777]
[1772238524819,1.10173434,1928.6,1928.5,0.72378897]
[1772238525311,1.10173434,1928.6,1928.3,0.0011]
[1772238526814,0.001,1928.6,1928.3,0.0011]
[1772238526978,0.001,1928.6,1928.3,1.11811937]
[1772238529893,0.001,1928.6,1928.3,6.30401182]
[1772238530094,0.001,1928.6,1928.3,2.41459813]
[1772238531223,0.73024183,1928.6,1928.3,0.0011]
[1772238532201,2.02652352,1928.6,1928.3,0.0011]
[1772238532515,0.73024183,1928.6,1928.3,0.0011]
[1772238533994,0.73024183,1928.6,1928.4,0.0011]
[1772238534190,0.001,1928.5,1928.4,0.0011]
[1772238538517,0.73598746,1928.5,1928.4,0.0011]
[1772238538713,0.001,1928.5,1928.4,0.0011]
[1772238540818,2.03142671,1928.4,1928.3,0.0011]
[1772238541999,0.73501518,1928.4,1928.3,0.0011]
[1772238543328,2.03142671,1928.4,1928.3,0.0011]
[1772238543824,0.73501518,1928.4,1928.3,0.0011]
[1772238544129,0.73501518,1928.4,1928.3,1.547e-05]
[1772238548931,0.73944005,1928.5,1928.4,0.0011]
[1772238549935,0.73944005,1928.5,1928.3,1.547e-05]
[1772238551204,2.03581754,1928.5,1928.3,1.547e-05]
[1772238554632,4.13581754,1928.5,1928.3,1.547e-05]
[1772238557036,1.29737749,1928.5,1928.3,1.547e-05]
[1772238557333,2.103,1928.5,1928.3,1.16172997]
[1772238557840,0.001,1928.5,1928.3,1.16172997]
[1772238561717,0.001,1928.5,1928.4,0.0011]
[1772238561938,0.001,1928.5,1928.4,1.554e-05]
[1772238564221,5.18431212,1928.9,1928.5,1.1617145]
[1772238564222,2.03888042,1928.9,1928.5,1.1617145]
[1772238564421,4.14288042,1928.9,1928.5,1.1617145]